fUSD/lending_fUSD_20251102
["ID","MTS","AMOUNT","RATE_DAILY","PERIOD"]
[392900114,1762117834207,-500.0,0.00014973,2]
[392900115,1762117834216,-501.22801815,0.00014973,2]
[392900116,1762117834226,-503.91202727,0.00014973,2]
[392900117,1762117834235,-500.0,0.00014973,2]
[392900118,1762117834245,-500.0,0.00014973,2]
[392900119,1762117834256,-500.0,0.00014973,2]
[392900120,1762117834266,-500.0,0.00014973,2]
[392900121,1762117834276,-500.0,0.00014973,2]
[392900122,1762117834287,-500.0,0.00014973,2]
[392900123,1762117834296,-500.0,0.00014973,2]
[392900124,1762117834307,-150.0,0.00014986,2]
[392900125,1762117834317,-150.0,0.00014986,2]
[392900126,1762117834326,-150.0,0.00014986,2]
[392900127,1762117834336,-172.45693908,0.00014986,2]
[392900128,1762117834346,-150.0,0.00014986,2]
[392900129,1762117834355,-150.0,0.00014986,2]
[392900130,1762117834367,-1224.6706279,0.00014998,2]
[392900131,1762117834378,-4744.3908774,0.00014998,2]
[392900132,1762117834389,-36475.8380819,0.00014999,2]
[392900133,1762117834401,-2903.577,0.00014999,2]
[392900134,1762117834413,-169.187,0.00014999,2]
[392900135,1762117834425,-500.0,0.00014999,2]
[392900136,1762117834438,-500.0,0.00014999,2]
[392900137,1762117834448,-150.0,0.00014999,2]
[392900138,1762117834458,-150.0,0.00014999,2]
[392900139,1762117834471,-500.0,0.00014999,2]
[392900140,1762117834481,-150.0,0.00014999,2]
[392900141,1762117834491,-150.0,0.00014999,2]
[392900142,1762117834501,-500.0,0.00014999,2]
[392900143,1762117834513,-697.0,0.00015,2]
[392900144,1762117834523,-70846.18275001,0.00015,2]
[392900145,1762117834536,-380.68661411,0.00015,2]
[392900146,1762117834677,-539.95972738,0.00015,2]
[392900147,1762117834867,500.0,0.00030136,120]
[392900148,1762117835196,500.0,0.00030136,120]
[392900149,1762117835622,500.0,0.00030136,120]
[392900150,1762117835933,500.0,0.00030136,120]
[392900151,1762117836001,500.0,0.00030136,120]
[392900152,1762117836277,525.40587819,0.00030136,120]
[392900153,1762117836346,500.0,0.00030136,120]
[392900154,1762117837119,500.0,0.00030136,120]
[392900155,1762117837251,161.318,0.00014466,2]
[392900159,1762117837494,-3275.21394243,0.00015,2]
[392900160,1762117837618,-766.68715685,0.00015,2]
[392900161,1762117837707,500.0,0.00030136,120]
[392900163,1762117837778,500.0,0.00030136,120]
[392900167,1762117837912,500.0,0.00030136,120]
[392900168,1762117838172,500.0,0.00030136,120]
[392900169,1762117838255,500.0,0.00030136,120]
[392900170,1762117838462,500.0,0.00030136,120]
[392900171,1762117838536,500.0,0.00030136,120]
[392900172,1762117839060,500.0,0.00030136,120]
[392900174,1762117839581,-12671.3726945,0.00015,2]
[392900175,1762117839592,-3336.1287087,0.00015,2]
[392900176,1762117839646,-8540.02337713,0.00015,2]
[392900177,1762117839754,-395.92311807,0.00015,2]
[392900178,1762117839811,-1102.1,0.00015,2]
[392900179,1762117839821,-7189.49888248,0.00015,2]
[392900180,1762117839924,-3951.2,0.00015,2]
[392900181,1762117840033,-732.71057402,0.00015,2]
[392900182,1762117840105,500.0,0.00030136,120]
[392900183,1762117840536,500.0,0.00030136,120]
[392900185,1762117841403,196.19560754,0.00030136,120]
[392900186,1762117841498,500.0,0.00030136,120]
[392900187,1762117841573,500.0,0.00030136,120]
[392900188,1762117842268,500.0,0.00030136,120]
[392900192,1762117842707,-192.99811717,0.00014847,2]
[392900193,1762117842717,-289.73308983,0.00014847,2]
[392900194,1762117842729,-210.26691017,0.00014847,2]
[392900195,1762117842739,-131.97101012,0.00014847,2]
[392900196,1762117842751,-368.02898988,0.00014847,2]
[392900197,1762117842761,-132.26037181,0.00014847,2]
[392900198,1762117842832,500.0,0.00030136,120]
[392900199,1762117842847,-367.73962819,0.00014847,2]
[392900200,1762117842857,-500.0,0.00014847,2]
[392900201,1762117842866,-500.0,0.00014847,2]
[392900203,1762117842875,-500.0,0.00014847,2]
[392900204,1762117842884,-49495.38501526,0.00015,2]
[392900205,1762117842953,500.0,0.00030136,120]
[392900206,1762117843038,500.0,0.00030136,120]
[392900207,1762117843264,500.0,0.00030136,120]
[392900208,1762117843606,500.0,0.00030136,120]
[392900209,1762117843701,853.67,0.00030136,120]
[392900210,1762117844618,500.0,0.00030136,120]
[392900211,1762117845016,500.0,0.00030136,120]
[392900212,1762117845121,500.0,0.00030136,120]
[392900213,1762117845526,-500.0,0.00014847,2]
[392900214,1762117845536,-500.0,0.00014847,2]
[392900215,1762117845547,-500.0,0.00014847,2]
[392900216,1762117845559,-500.0,0.00014847,2]
[392900217,1762117845569,-500.0,0.00014847,2]
[392900218,1762117845579,-500.0,0.00014847,2]
[392900219,1762117845591,-500.0,0.00014847,2]
[392900220,1762117845600,-1412.23468211,0.00015,2]
[392900221,1762117845710,500.0,0.00030136,120]
[392900222,1762117845759,-500.0,0.00014847,2]
[392900223,1762117845768,-236718.18255081,0.00015,2]
[392900224,1762117845795,-1126.5,0.00015,2]
[392900225,1762117845878,-250.6491864,0.00014847,2]
[392900233,1762117846102,832.67,0.00030136,120]
[392900237,1762117846375,500.0,0.00030136,120]
[392900238,1762117846694,500.0,0.00030136,120]
[392900239,1762117846823,664.36,0.00030136,120]
[392900240,1762117847060,500.0,0.00030136,120]
[392900241,1762117847136,500.0,0.00030136,120]
[392900242,1762117847213,500.0,0.00030136,120]
[392900243,1762117847291,500.0,0.00030136,120]
[392900244,1762117849994,500.0,0.00030136,120]
[392900245,1762117850160,1276.65,0.00030136,120]
[392900246,1762117850340,500.0,0.00030136,120]
[392900247,1762117850412,500.0,0.00030136,120]
[392900248,1762117850499,500.0,0.00030136,120]
[392900249,1762117850755,881.66,0.00030136,120]
[392900250,1762117851666,500.0,0.00030136,120]
[392900251,1762117851730,213.77,0.00013854,2]
[392900252,1762117852927,540.67,0.00030136,120]
[392900253,1762117853183,500.0,0.00030136,120]
[392900254,1762117854649,500.0,0.00030136,120]
[392900255,1762117854742,500.0,0.00030136,120]
[392900256,1762117854833,500.0,0.00030136,120]
[392900257,1762117855520,500.0,0.00030136,120]
[392900258,1762117855762,500.0,0.00030136,120]
[392900259,1762117855869,849.08,0.00030136,120]
[392900260,1762117856113,534.37,0.00030136,120]
[392900261,1762117857514,160.32257907,0.00030136,120]
[392900262,1762117857925,500.0,0.00030136,120]
[392900263,1762117858000,500.0,0.00030136,120]
[392900264,1762117858099,500.0,0.00030136,120]
[392900265,1762117858172,500.0,0.00030136,120]
[392900266,1762117859276,500.0,0.00030136,120]
[392900267,1762117859384,500.0,0.00030136,120]
[392900268,1762117860023,589.88016225,0.00030136,120]
[392900269,1762117861749,500.0,0.00030136,120]
[392900270,1762117862020,542.10101397,0.00030136,120]
[392900271,1762117862130,500.0,0.00030136,120]
[392900272,1762117862986,500.0,0.00030136,120]
[392900273,1762117863128,500.0,0.00030136,120]
[392900274,1762117863775,500.0,0.00030136,120]
[392900275,1762117863960,500.0,0.00030136,120]
[392900276,1762117864035,679.54,0.00030136,120]
[392900277,1762117864204,260.83148516,0.00030136,120]
[392900278,1762117864534,500.0,0.00030136,120]
[392900279,1762117865027,500.0,0.00030136,120]
[392900280,1762117865920,500.0,0.00030136,120]
[392900281,1762117866723,500.0,0.00030136,120]
[392900282,1762117866945,575.57859284,0.00030136,120]
[392900283,1762117867569,805.49,0.00030136,120]
[392900284,1762117867739,500.0,0.00030136,120]
[392900285,1762117869151,527.07861463,0.00030136,120]
[392900286,1762117869744,672.81,0.00030136,120]
[392900287,1762117870319,540.36,0.00030136,120]
[392900288,1762117870889,500.0,0.00030136,120]
[392900289,1762117870960,500.0,0.00030136,120]
[392900290,1762117871165,500.0,0.00030136,120]
[392900291,1762117872493,500.0,0.00030136,120]
[392900292,1762117873080,500.0,0.00030136,120]
[392900293,1762117873567,500.0,0.00030136,120]
[392900294,1762117874876,823.64,0.00030136,120]
[392900295,1762117875428,500.0,0.00030136,120]
[392900296,1762117875509,500.0,0.00030136,120]
[392900297,1762117876679,500.0,0.00030136,120]
[392900298,1762117877326,500.0,0.00030136,120]
[392900299,1762117877789,315.02789699,0.00030136,120]
[392900300,1762117878226,500.0,0.00030136,120]
[392900301,1762117878352,500.0,0.00030136,120]
[392900302,1762117878866,500.0,0.00030136,120]
[392900303,1762117878979,500.0,0.00030136,120]
[392900304,1762117879090,500.0,0.00030136,120]
[392900305,1762117880102,500.0,0.00030136,120]
[392900306,1762117880900,500.0,0.00030136,120]
[392900307,1762117881120,525.23938743,0.00030136,120]
[392900308,1762117881325,500.0,0.00030136,120]
[392900309,1762117881374,3541.99,0.00013854,2]
[392900310,1762117881563,500.0,0.00030136,120]
[392900311,1762117881643,500.0,0.00030136,120]
[392900312,1762117882351,155.88135324,0.00030136,120]
[392900313,1762117882938,500.0,0.00030136,120]
[392900314,1762117883070,500.0,0.00030136,120]
[392900315,1762117883313,500.0,0.00030136,120]
[392900316,1762117883517,450.17021974,0.00030136,120]
[392900317,1762117883965,500.0,0.00030136,120]
[392900318,1762117884305,396.24221357,0.00030136,120]
[392900319,1762117884392,927.67,0.00030136,120]
[392900320,1762117884556,500.0,0.00030136,120]
[392900321,1762117885079,500.0,0.00030136,120]
[392900322,1762117885326,500.0,0.00030136,120]
[392900323,1762117886358,500.0,0.00030136,120]
[392900324,1762117887706,843.28,0.00030136,120]
[392900325,1762117887882,500.0,0.00030136,120]
[392900326,1762117888228,485.0344641,0.00030136,120]
[392900327,1762117888376,500.0,0.00030136,120]
[392900328,1762117888730,500.0,0.00030136,120]
[392900329,1762117889544,500.0,0.00030136,120]
[392900330,1762117889939,705.59,0.00030136,120]
[392900331,1762117890969,500.0,0.00030136,120]
[392900332,1762117891573,500.0,0.00030136,120]
[392900333,1762117891772,500.0,0.00030136,120]
[392900334,1762117892341,500.0,0.00030136,120]
[392900335,1762117892416,500.0,0.00030136,120]
[392900336,1762117893501,500.0,0.00030136,120]
[392900337,1762117893701,500.0,0.00030136,120]
[392900338,1762117893805,600.78,0.00030136,120]
[392900339,1762117894527,915.87,0.00030136,120]
[392900340,1762117894958,500.0,0.00030136,120]
[392900341,1762117895634,500.0,0.00030136,120]
[392900342,1762117896632,500.0,0.00030136,120]
[392900343,1762117897200,500.0,0.00030136,120]
[392900344,1762117898780,500.0,0.00030136,120]
[392900345,1762117898894,500.0,0.00030136,120]
[392900346,1762117899320,500.0,0.00030136,120]
[392900347,1762117900067,500.0,0.00030136,120]
[392900348,1762117900177,897.94,0.00030136,120]
[392900349,1762117900358,612.59,0.00030136,120]
[392900350,1762117901743,500.0,0.00030136,120]
[392900351,1762117901954,500.0,0.00030136,120]
[392900354,1762117902502,500.0,0.00030136,120]
[392900355,1762117903607,500.0,0.00030136,120]
[392900356,1762117904620,500.0,0.00030136,120]
[392900357,1762117905794,755.85,0.00030136,120]
[392900358,1762117906308,500.0,0.00030136,120]
[392900359,1762117906560,500.0,0.00030136,120]
[392900360,1762117907150,500.0,0.00030136,120]
[392900362,1762117907743,500.0,0.00030136,120]
[392900365,1762117910031,500.0,0.00030136,120]
[392900366,1762117910239,500.0,0.00030136,120]
[392900367,1762117910360,500.0,0.00030136,120]
[392900368,1762117910481,500.0,0.00030136,120]
[392900370,1762117910898,500.0,0.00030136,120]
[392900371,1762117911228,500.0,0.00030136,120]
[392900372,1762117911295,500.0,0.00030136,120]
[392900373,1762117912033,500.0,0.00030136,120]
[392900374,1762117912117,500.0,0.00030136,120]
[392900375,1762117912436,500.0,0.00030136,120]
[392900376,1762117913301,500.0,0.00030136,120]
[392900377,1762117913382,500.0,0.00030136,120]
[392900378,1762117913708,188.78536155,0.00030136,120]
[392900379,1762117914000,500.0,0.00030136,120]
[392900380,1762117914081,500.0,0.00030136,120]
[392900381,1762117914171,500.0,0.00030136,120]
[392900382,1762117915287,1000.0,0.00030136,120]
[392900383,1762117915929,500.0,0.00030136,120]
[392900384,1762117916208,500.0,0.00030136,120]
[392900385,1762117916416,500.0,0.00030136,120]
[392900386,1762117918265,500.0,0.00030136,120]
[392900387,1762117918913,500.0,0.00030136,120]
[392900388,1762117919320,500.0,0.00030136,120]
[392900389,1762117919414,500.0,0.00030136,120]
[392900390,1762117919496,418.0983715,0.00030136,120]
[392900391,1762117920992,500.0,0.00030136,120]
[392900392,1762117921307,500.0,0.00030136,120]
[392900393,1762117921378,500.0,0.00030136,120]
[392900395,1762117922546,853.15,0.00030136,120]
[392900396,1762117923258,500.0,0.00030136,120]
[392900397,1762117923330,500.0,0.00030136,120]
[392900398,1762117923412,698.21,0.00030136,120]
[392900399,1762117924226,500.0,0.00030136,120]
[392900400,1762117924326,500.0,0.00030136,120]
[392900401,1762117924503,500.0,0.00030136,120]
[392900402,1762117925200,764.29,0.00030136,120]
[392900403,1762117925282,500.0,0.00030136,120]
[392900404,1762117925749,334.47879941,0.00030136,120]
[392900405,1762117925834,500.0,0.00030136,120]
[392900406,1762117926026,500.0,0.00030136,120]
[392900407,1762117926521,500.0,0.00030136,120]
[392900408,1762117926841,500.0,0.00030136,120]
[392900409,1762117927142,568.66,0.00030136,120]
[392900410,1762117927296,823.45,0.00030136,120]
[392900411,1762117928295,667.17,0.00030136,120]
[392900412,1762117928403,500.0,0.00030136,120]
[392900413,1762117930207,500.0,0.00030136,120]
[392900414,1762117930400,500.0,0.00030136,120]
[392900415,1762117930723,500.0,0.00030136,120]
[392900416,1762117931243,500.0,0.00030136,120]
[392900417,1762117932797,500.0,0.00030136,120]
[392900418,1762117933648,939.13,0.00030136,120]
[392900419,1762117934442,500.0,0.00030136,120]
[392900420,1762117934932,500.0,0.00030136,120]
[392900421,1762117935551,623.73,0.00030136,120]
[392900423,1762117937801,500.0,0.00030136,120]
[392900424,1762117938700,500.0,0.00030136,120]
[392900425,1762117939303,500.0,0.00030136,120]
[392900426,1762117939451,175.26611382,0.00030136,120]
[392900427,1762117940652,500.0,0.00030136,120]
[392900428,1762117941442,500.0,0.00030136,120]
[392900429,1762117941663,686.45,0.00030136,120]
[392900430,1762117941853,424.92021487,0.00030136,120]
[392900431,1762117943082,500.0,0.00030136,120]
[392900432,1762117943124,1342.0,0.000149,3]
[392900434,1762117943334,500.0,0.00030136,120]
[392900435,1762117943411,500.0,0.00030136,120]
[392900437,1762117943479,500.0,0.00030136,120]
[392900438,1762117944598,500.0,0.00030136,120]
[392900439,1762117945172,1000.0,0.000149,3]
[392900440,1762117945246,345.33738284,0.00030136,120]
[392900441,1762117945978,500.0,0.00030136,120]
[392900443,1762117947308,513.49,0.00030136,120]
[392900444,1762117948032,191.95067759,0.00030136,120]
[392900445,1762117948259,500.0,0.00030136,120]
[392900447,1762117949096,697.79,0.00030136,120]
[392900448,1762117949176,800.2,0.00030136,120]
[392900449,1762117950179,500.0,0.00030136,120]
[392900450,1762117950402,1052.55,0.00030136,120]
[392900451,1762117950565,500.0,0.00030136,120]
[392900452,1762117951017,500.0,0.00030136,120]
[392900453,1762117951380,500.0,0.00030136,120]
[392900454,1762117951917,500.0,0.00030136,120]
[392900455,1762117952919,500.0,0.00030136,120]
[392900456,1762117953201,705.97,0.00030136,120]
[392900457,1762117954910,500.0,0.00030136,120]
[392900458,1762117955252,156.0,0.00029537,120]
[392900459,1762117955339,500.0,0.00030136,120]
[392900460,1762117955744,500.0,0.00030136,120]
[392900461,1762117956347,500.0,0.00030136,120]
[392900465,1762117958055,454.80260621,0.00030136,120]
[392900466,1762117958707,500.0,0.00030136,120]
[392900467,1762117959013,500.0,0.00030136,120]
[392900468,1762117959764,500.0,0.00030136,120]
[392900469,1762117959966,500.0,0.00030136,120]
[392900470,1762117960027,500.0,0.00030136,120]
[392900472,1762117960731,500.0,0.00030136,120]
[392900473,1762117960834,500.0,0.00030136,120]
[392900474,1762117961274,664.48,0.00030136,120]
[392900475,1762117961360,500.0,0.00030136,120]
[392900476,1762117961932,819.14,0.00030136,120]
[392900477,1762117962616,500.0,0.00030136,120]
[392900478,1762117962801,500.0,0.00030136,120]
[392900479,1762117964740,500.0,0.00030136,120]
[392900480,1762117965206,500.0,0.00030136,120]
[392900481,1762117965794,500.0,0.00030136,120]
[392900482,1762117965872,343.35515021,0.00030136,120]
[392900483,1762117966434,500.0,0.00030136,120]
[392900484,1762117966530,500.0,0.00030136,120]
[392900485,1762117967629,500.0,0.00030136,120]
[392900486,1762117967718,508.26,0.00030136,120]
[392900487,1762117968169,500.0,0.00030136,120]
[392900488,1762117968456,500.0,0.00030136,120]
[392900489,1762117968530,608.46,0.00030136,120]
[392900490,1762117969351,570.17464466,0.00030136,120]
[392900491,1762117970409,389.24312106,0.00030136,120]
[392900492,1762117970474,500.0,0.00030136,120]
[392900494,1762117971214,500.0,0.00030136,120]
[392900496,1762117971738,500.0,0.00030136,120]
[392900497,1762117972025,652.42,0.00030136,120]
[392900499,1762117972752,500.0,0.00030136,120]
[392900500,1762117973821,500.0,0.00030136,120]
[392900501,1762117973991,323.37126481,0.00030136,120]
[392900502,1762117974109,662.18,0.00030136,120]
[392900503,1762117975523,500.0,0.00030136,120]
[392900504,1762117975980,628.24,0.00030136,120]
[392900506,1762117976689,500.0,0.00030136,120]
[392900507,1762117977056,500.0,0.00030136,120]
[392900508,1762117977370,500.0,0.00030136,120]
[392900509,1762117977447,692.95,0.00030136,120]
[392900510,1762117977906,550.19560854,0.00030136,120]
[392900511,1762117978497,500.0,0.00030136,120]
[392900512,1762117978890,1000.0,0.000149,3]
[392900513,1762117978961,500.0,0.00030136,120]
[392900514,1762117979161,500.0,0.00030136,120]
[392900515,1762117979854,1497.44,0.00030136,120]
[392900516,1762117979931,500.0,0.00030136,120]
[392900517,1762117979999,500.0,0.00030136,120]
[392900518,1762117981128,582.23,0.00030136,120]
[392900519,1762117981610,893.21759391,0.00014524,2]
[392900521,1762117981890,500.0,0.00030136,120]
[392900522,1762117982322,500.0,0.00030136,120]
[392900523,1762117982389,260.51981736,0.00030136,120]
[392900524,1762117983070,500.0,0.00030136,120]
[392900525,1762117983383,500.0,0.00030136,120]
[392900526,1762117984186,160.10762104,0.00030136,120]
[392900527,1762117985433,500.0,0.00030136,120]
[392900528,1762117986071,500.0,0.00030136,120]
[392900529,1762117986317,500.0,0.00030136,120]
[392900530,1762117986571,500.0,0.00030136,120]
[392900531,1762117986788,194.49000771,0.00030136,120]
[392900532,1762117987234,500.0,0.00030136,120]
[392900533,1762117987983,479.80725009,0.00030136,120]
[392900534,1762117988051,500.0,0.00030136,120]
[392900535,1762117988369,500.0,0.00030136,120]
[392900536,1762117988441,500.0,0.00030136,120]
[392900537,1762117989191,500.0,0.00030136,120]
[392900538,1762117989298,500.0,0.00030136,120]
[392900540,1762117989995,500.0,0.00030136,120]
[392900542,1762117990132,731.33,0.00030136,120]
[392900543,1762117990279,500.0,0.00030136,120]
[392900545,1762117990356,500.0,0.00030136,120]
[392900546,1762117991175,500.0,0.00030136,120]
[392900547,1762117991244,500.0,0.00030136,120]
[392900548,1762117991966,709.39,0.00030136,120]
[392900551,1762117992351,500.0,0.00030136,120]
[392900552,1762117992521,833.56,0.00030136,120]
[392900557,1762117993512,500.0,0.00030136,120]
[392900562,1762117994903,500.0,0.00030136,120]
[392900564,1762117994975,500.0,0.00030136,120]
[392900565,1762117995087,500.0,0.00030136,120]
[392900566,1762117995756,500.0,0.00030136,120]
[392900567,1762117995994,500.0,0.00030136,120]
[392900568,1762117996113,500.0,0.00030136,120]
[392900569,1762117996243,500.0,0.00030136,120]
[392900571,1762117997971,500.0,0.00030136,120]
[392900572,1762117998151,500.0,0.00030136,120]
[392900573,1762117998757,500.0,0.00030136,120]
[392900574,1762117999623,500.0,0.00030136,120]
[392900576,1762117999900,500.0,0.00030136,120]
[392900578,1762118000395,500.0,0.00030137,120]
[392900580,1762118000462,500.0,0.00030136,120]
[392900586,1762118001594,500.0,0.00030136,120]
[392900589,1762118002250,500.0,0.00030136,120]
[392900591,1762118002307,500.0,0.00030136,120]
[392900592,1762118002454,500.0,0.00030136,120]
[392900594,1762118002516,289.05029323,0.00030136,120]
[392900595,1762118002697,500.0,0.00030136,120]
[392900597,1762118002875,500.0,0.00030136,120]
[392900599,1762118003049,578.69,0.00030136,120]
[392900601,1762118003412,397.03774945,0.00030136,120]
[392900607,1762118004799,500.0,0.00030136,120]
[392900608,1762118005889,500.0,0.00030136,120]
[392900609,1762118005970,500.0,0.00030136,120]
[392900610,1762118006256,500.0,0.00030136,120]
[392900611,1762118006324,500.0,0.00030136,120]
[392900612,1762118006769,500.0,0.00030136,120]
[392900613,1762118007517,242.9744,0.00014466,2]
[392900614,1762118007649,500.0,0.00030136,120]
[392900615,1762118007920,500.0,0.00030136,120]
[392900616,1762118008683,500.0,0.00030136,120]
[392900617,1762118008748,500.0,0.00030136,120]
[392900619,1762118009913,509.56986682,0.00030136,120]
[392900620,1762118009990,500.0,0.00030136,120]
[392900622,1762118010099,500.0,0.00030136,120]
[392900623,1762118010455,798.36,0.00030136,120]
[392900624,1762118011204,500.0,0.00030136,120]
[392900625,1762118012015,500.0,0.00030136,120]
[392900626,1762118012713,618.4,0.00030136,120]
[392900627,1762118013196,500.0,0.00030136,120]
[392900628,1762118013396,500.0,0.00030136,120]
[392900629,1762118014326,678.3,0.00030136,120]
[392900630,1762118014577,500.0,0.00030136,120]
[392900632,1762118014903,831.33,0.00030136,120]
[392900633,1762118014967,500.0,0.00030136,120]
[392900634,1762118015248,1028.4,0.00030136,120]
[392900635,1762118015670,543.81,0.00030136,120]
[392900636,1762118017760,500.0,0.00030136,120]
[392900637,1762118017879,797.56,0.00030136,120]
[392900638,1762118019114,599.09994207,0.00030136,120]
[392900639,1762118019660,500.0,0.00030136,120]
[392900640,1762118020678,500.0,0.00030136,120]
[392900641,1762118021471,535.26,0.00030136,120]
[392900642,1762118023335,613.47,0.00030136,120]
[392900643,1762118023402,500.0,0.00030136,120]
[392900644,1762118023729,428.78991269,0.00030136,120]
[392900645,1762118025713,500.0,0.00030136,120]
[392900646,1762118026001,500.0,0.00030136,120]
[392900647,1762118027244,839.33,0.00030136,120]
[392900648,1762118027745,500.0,0.00030136,120]
[392900649,1762118027986,500.0,0.00030136,120]
[392900650,1762118029978,500.0,0.00030136,120]
[392900651,1762118030941,500.0,0.00030136,120]
[392900652,1762118031013,500.0,0.00030136,120]
[392900653,1762118031228,500.0,0.00030136,120]
[392900654,1762118032011,500.0,0.00030136,120]
[392900655,1762118032078,500.0,0.00030136,120]
[392900656,1762118034193,500.0,0.00030136,120]
[392900657,1762118034262,500.0,0.00030136,120]
[392900658,1762118034334,500.0,0.00030136,120]
[392900659,1762118034661,421.31306993,0.00030136,120]
[392900660,1762118034882,625.83,0.00030136,120]
[392900661,1762118035181,702.57,0.00030136,120]
[392900662,1762118035702,500.0,0.00030136,120]
[392900663,1762118036442,500.0,0.00030136,120]
[392900664,1762118036757,280.40348596,0.00030136,120]
[392900665,1762118037369,500.0,0.00030136,120]
[392900666,1762118038097,500.0,0.00030136,120]
[392900667,1762118039759,209.11147951,0.00030136,120]
[392900668,1762118039925,290.08142837,0.00030136,120]
[392900669,1762118040410,500.0,0.00030136,120]
[392900670,1762118040710,500.0,0.00030136,120]
[392900672,1762118041178,500.0,0.00030136,120]
[392900673,1762118041264,500.0,0.00030136,120]
[392900674,1762118041804,500.0,0.00030136,120]
[392900675,1762118042315,500.0,0.00030136,120]
[392900676,1762118043369,500.0,0.00030136,120]
[392900677,1762118044306,500.0,0.00030136,120]
[392900678,1762118045673,376.62002946,0.00030136,120]
[392900679,1762118045794,324.95837586,0.00030136,120]
[392900680,1762118045895,500.0,0.00030136,120]
[392900681,1762118046325,500.0,0.00030136,120]
[392900682,1762118046575,168.0,0.00014481,2]
[392900683,1762118047408,500.0,0.00030136,120]
[392900684,1762118047525,516.19084185,0.00030136,120]
[392900685,1762118047905,500.0,0.00030136,120]
[392900686,1762118048438,500.0,0.00030136,120]
[392900687,1762118049877,500.0,0.00030136,120]
[392900688,1762118050859,542.28529275,0.00030136,120]
[392900689,1762118051193,500.0,0.00030136,120]
[392900690,1762118051277,608.68282332,0.00030136,120]
[392900691,1762118052178,500.0,0.00030136,120]
[392900693,1762118052581,500.0,0.00030136,120]
[392900694,1762118052652,516.75716153,0.00030136,120]
[392900696,1762118053101,500.0,0.00030136,120]
[392900697,1762118054485,555.98400347,0.00030136,120]
[392900699,1762118055091,500.0,0.00030136,120]